[Event "Israeli Team U18-ch 2022"]
[Site "Be'er Ya'akov"]
[Date "2022.08.15"]
[Round "3.8"]
[White "Ater, Yuval"]
[Black "Uritsky, Yonathan"]
[Result "0-1"]
[ECO "B12"]
[WhiteElo "1854"]
[BlackElo "2130"]
[Annotator "TA"]
[PlyCount "108"]
[EventDate "2022.08.14"]
[EventCountry "ISR"]
[SourceTitle "playchess.com"]
[Source "ChessBase"]
[SourceQuality "1"]
[TimeControl "3000+10"]

{[%evp 9,108,-25,-29,-32,-23,-59,-35,-78,-62,-134,-138,-122,-136,-168,-169,-176,-99,-166,-127,-116,-109,-91,-100,-125,-114,-126,-126,-112,-104,-141,-91,-78,-68,-68,-68,-68,-70,-125,0,0,0,0,0,0,0,-18,0,0,0,0,0,0,0,0,0,0,0,-110,0,0,0,0,0,0,0,-82,-82,-82,-82,-82,-82,-82,-82,-82,-77,-110,-72,-110,-72,-110,-77,-110,-110,-135,-110,-110,-8,-54,-8,-8,0,0,0,-54,-53,-472,-286,-29988,-29989,-29989,-29990]} 1. e4 {[%emt 0:00:02]} c6 {[%emt 0:00:04]} 2. d4 {[%emt 0:00:03]} d5 {[%emt 0:00:03]} 3. f3 {[%emt 0:00:03]} e6 {[%emt 0:01:17]} 4. Nc3 {[%emt 0:00:10]} Bb4 {[%emt 0:00:05]} 5. a3 {[%emt 0:00:41]} Bxc3+ {[%emt 0:00:12]} 6. bxc3 {[%emt 0:00:09] B12: Caro-Kann: Advance Variation.} dxe4 {[%emt 0:00:10][%cal Oc6c5]} 7. Bf4 {[%emt 0:00:26]} Nf6 {[%emt 0:00:39]} 8. Bc4 {[%emt 0:02:23] [#] Black is slightly better.} Nd5 $146 {[%emt 0:01:52]} ({Predecessor:} 8... Qa5 9. Bd2 e3 10. Ne2 exd2+ 11. Qxd2 O-O 12. O-O c5 13. Qg5 h6 14. Qh4 Nc6 {½-½ (54) Toth,G (2138)-Balog,T (2010) Hungary 2007}) 9. Bxd5 {[%emt 0:03:29]} (9. Qd2 $1 $15) 9... exd5 $17 {[%emt 0:00:02][%cal Be6d5,Bd5e4][%mdl 32]} ({Weaker is} 9... cxd5 10. fxe4 dxe4 11. Qg4 $17 (11. Ne2 O-O $17)) 10. fxe4 {[%emt 0:00:53]} dxe4 {[%emt 0:00:34]} 11. Qh5 {[%emt 0:01:03]} O-O {[%emt 0:01:38]} 12. Ne2 {[%emt 0:01:22]} Qd5 {[%emt 0:01:09]} (12... Nd7 $19 13. O-O Nb6) 13. Qh4 {[%emt 0:01:44]} (13. Qxd5 $17 {is a better defense.} cxd5 14. c4) 13... Qc4 {[%emt 0:03:30]} 14. Bxb8 {[%emt 0:03:23]} Rxb8 {[%emt 0:00:07]} 15. Qxe4 {[%emt 0:00:18]} b6 {[%emt 0:08:12] Hoping for ...Ba6.} 16. Kf2 {[%emt 0:08:28]} Ba6 {[%emt 0:01:37]} 17. Rhe1 {[%emt 0:01:32]} Rfe8 {[%emt 0:01:03]} 18. Qf3 {[%emt 0:00:34]} Qa4 {[%emt 0:01:29]} 19. Rac1 {[%emt 0:05:17]} Re6 {[%emt 0:00:01] Black is more active.} ({And not} 19... Qxa3 20. Ng3 Bb5 21. Nf5 $17) (19... Bxe2 $142 20. Rxe2 Rxe2+ 21. Kxe2 Qxa3) 20. Nf4 {[%emt 0:03:00]} Rxe1 21. Rxe1 {[%emt 0:00:22]} Qxc2+ {[%emt 0:00:51]} 22. Kg1 {[%emt 0:00:01]} h6 {[%emt 0:04:16]} 23. Qxc6 {[%emt 0:02:47]} (23. h4 $15) 23... Qd2 {[%emt 0:02:02]} (23... Rc8 $17 24. Qe4 Qxe4 25. Rxe4 Rxc3) 24. Re8+ $1 $11 {[%emt 0:02:24]} Rxe8 {[%emt 0:00:01]} 25. Qxe8+ {[%emt 0:00:01][%mdl 4096] Endgame KQB-KQN} Kh7 {[%emt 0:00:00]} 26. Qe4+ {[%emt 0:00:57]} g6 {[%emt 0:00:01][%cal Oa6b7]} 27. Nd5 {[%emt 0:01:44]} Qd1+ {[%emt 0:02:03]} 28. Kf2 {[%emt 0:00:03]} Qf1+ {[%emt 0:00:10]} 29. Kg3 {[%emt 0:00:36]} Bc4 {[%emt 0:00:02]} 30. h3 {[%emt 0:02:03]} b5 {[%emt 0:04:53]} 31. Qe5 {[%emt 0:01:36] Nf6+ is the strong threat.} Bxd5 {[%emt 0:00:01]} 32. Qxd5 {[%emt 0:00:03] KQ-KQ} a5 {[%emt 0:00:15]} 33. Qe4 {[%emt 0:02:50]} (33. Qc5 $11) 33... Qc4 {[%emt 0:00:31]} (33... Qa1 $17 34. Qd3 Qxa3) 34. Qf3 {[%emt 0:01:26]} Kg7 {[%emt 0:00:35]} 35. Qe3 {[%emt 0:00:13]} Qb3 {[%emt 0:05:57]} 36. Qe5+ {[%emt 0:01:24]} Kh7 {[%emt 0:00:08]} 37. Qc7 {[%emt 0:00:40] [#]} (37. Qc5 $1 $11 {keeps the balance.}) 37... b4 $1 $17 {[%emt 0:00:53]} 38. axb4 {[%emt 0:00:30]} axb4 {[%emt 0:00:02]} 39. Kh2 {[%emt 0:00:20] Threatens to win with cxb4.} bxc3 {[%emt 0:01:27]} 40. d5 {[%emt 0:00:10]} Qxd5 {[%emt 0:00:23] White must now prevent ...Qb3.} 41. Qxc3 {[%emt 0:00:02]} h5 {[%emt 0:00:53]} 42. Qe3 {[%emt 0:00:08]} g5 {[%emt 0:00:37]} 43. Qe2 {[%emt 0:00:35]} Kg6 {[%emt 0:00:52]} 44. Qe3 {[%emt 0:00:43]} Qf5 {[%emt 0:01:50] ( -> ...Qf4+)} 45. Qe8 {[%emt 0:00:15]} Kg7 {[%emt 0:00:15] Inhibits Qg8+.} 46. Qe7 {[%emt 0:00:32]} Qf6 {[%emt 0:00:21]} 47. Qe2 {[%emt 0:00:04]} g4 {[%emt 0:00:29]} (47... Qd6+ $17 48. Kg1 Qd4+ 49. Kf1 Qf6+ 50. Kg1 Qd4+ 51. Kf1 Qf4+ 52. Ke1 h4 53. Qb2+ Kg6 54. Qb1+ Kf6) 48. Qe3 {[%emt 0:00:23]} (48. Kg3 $11) 48... Qf5 {[%emt 0:00:27]} (48... Qd6+ $1 $15 49. g3 Qd5) 49. hxg4 $11 {[%emt 0:00:12]} hxg4 {[%emt 0:00:03]} 50. Kg3 {[%emt 0:00:07]} Kg6 {[%emt 0:00:52]} 51. Qb6+ {[%emt 0:00:06]} ({White should play} 51. Qd4 $11) 51... Kh5 $1 $15 {[%emt 0:00:07]} 52. Qe3 {[%emt 0:00:05][%mdl 8192] [#] Prevents Qe5+.} (52. Qb8 $15) 52... Qg5 $1 $19 {[%emt 0:00:16]} 53. Qe8 {[%emt 0:00:25]} (53. Qe2 $19) 53... Qh4+ {[%emt 0:00:01]} 54. Kf4 {[%emt 0:00:02]} Qf2+ {[%emt 0:00:01] Weighted Error Value: White=0.56/Black=0.18 (very precise)} 0-1

[Event "Israeli Team U18-ch 2022"]
[Site "Be'er Ya'akov"]
[Date "2022.08.15"]
[Round "3.9"]
[White "Gavriely, Or"]
[Black "Sokolovsky, Yahli"]
[Result "1/2-1/2"]
[ECO "D14"]
[WhiteElo "2072"]
[BlackElo "2386"]
[Annotator "TA"]
[PlyCount "36"]
[EventDate "2022.08.14"]
[EventCountry "ISR"]
[SourceTitle "playchess.com"]
[Source "ChessBase"]
[SourceQuality "1"]
[TimeControl "3000+10"]

{[%evp 18,36,0,0,0,-11,0,-2,-5,-4,-11,-7,22,0,16,25,7,0,27,-17,0]} 1. d4 {[%emt 0:00:22]} d5 {[%emt 0:00:51]} 2. c4 {[%emt 0:00:20]} c6 {[%emt 0:00:04]} 3. cxd5 {[%emt 0:00:06]} cxd5 {[%emt 0:00:03]} 4. Nc3 {[%emt 0:00:08]} Nf6 {[%emt 0:00:10]} 5. Bf4 {[%emt 0:00:12]} Nc6 {[%emt 0:00:36]} 6. Nf3 {[%emt 0:00:02]} Bf5 {[%emt 0:00:10]} 7. e3 {[%emt 0:00:10]} e6 {[%emt 0:00:18]} 8. Bd3 {[%emt 0:01:42]} Bxd3 {[%emt 0:01:03]} 9. Qxd3 {[%emt 0:00:01]} Be7 {[%emt 0:00:22]} 10. O-O {[%emt 0:00:08]} Nh5 {[%emt 0:04:05] D14: Slav Defence: Exchange variation with ...Bf5.} 11. Bg3 {[%emt 0:00:07]} O-O {[%emt 0:00:38]} 12. Rac1 {[%emt 0:00:11]} Nxg3 {[%emt 0:02:00]} 13. hxg3 {[%emt 0:00:01]} Rc8 {[%emt 0:00:54]} 14. a3 {[%emt 0:00:10]} f5 {[%emt 0:08:09] [#]} 15. b4 $146 {[%emt 0:04:54]} ({Predecessor:} 15. Ne2 Qd7 16. b4 Bd6 17. Nf4 a6 18. Ng5 Rfe8 19. Qb3 Kh8 20. Nf3 {0-1 (34) Sirotkin,E (1354)-Giurgiu,N (2068) LSS email 2013}) 15... Qe8 {[%emt 0:02:22]} 16. Ne2 {[%emt 0:01:57]} Bd6 {[%emt 0:05:33]} 17. Rc2 {[%emt 0:01:57]} Rb8 {[%emt 0:03:30]} 18. Qb3 {[%emt 0:02:57]} Rf6 {[%emt 0:04:21] An uneventful encounter.  Weighted Error Value: White=0.10 (very precise) /Black=0.08 (flawless)} 1/2-1/2

[Event "Israeli Team U18-ch 2022"]
[Site "Be'er Ya'akov"]
[Date "2022.08.15"]
[Round "3.10"]
[White "Neiman, Maks"]
[Black "Gadasi, Noam"]
[Result "0-1"]
[ECO "D03"]
[WhiteElo "2110"]
[BlackElo "1993"]
[Annotator "TA"]
[PlyCount "92"]
[EventDate "2022.08.14"]
[EventCountry "ISR"]
[SourceTitle "playchess.com"]
[Source "ChessBase"]
[SourceQuality "1"]
[TimeControl "3000+10"]

{[%evp 9,92,0,10,8,10,0,0,0,10,2,35,23,27,24,35,29,58,-49,43,29,27,30,39,0,0,0,0,-16,-14,-36,-4,-42,-54,-94,-86,-123,0,0,67,-77,79,-62,-15,-134,-123,-134,-134,-134,-134,-134,-134,-133,-134,-141,-144,-156,0,-138,-133,-162,-159,-165,-163,-181,-148,-177,-168,-175,-66,-75,-67,-78,-72,-145,-141,-331,-193,-168,-118,-300,-292,-2089,-1718,-1277,-1141]} 1. d4 {[%emt 0:00:03]} Nf6 {[%emt 0:00:06]} 2. Nf3 {[%emt 0:00:59]} e6 {[%emt 0:00:46]} 3. Bg5 {[%emt 0:00:50]} d5 {[%emt 0:01:57]} 4. e3 {[%emt 0:00:12]} Be7 {[%emt 0:02:04]} 5. Bd3 {[%emt 0:01:02]} O-O {[%emt 0:00:17]} 6. O-O {[%emt 0:00:43] D03: 1 d4 d5 2 Nf3 Nf6 3 Bg5, including Torre Attack with early ...d5.} c5 {[%emt 0:00:44]} 7. c3 {[%emt 0:00:04]} b6 {[%emt 0:01:27]} 8. Ne5 {[%emt 0:01:38] The position is equal.} h6 {[%emt 0:02:16]} 9. Bh4 {[%emt 0:00:26] [#]} Ne4 $146 {[%emt 0:05:04]} ({Predecessor:} 9... Qc7 10. Nd2 Ba6 11. Bxa6 Nxa6 12. Qa4 Nb8 13. f4 a6 14. f5 b5 15. Qd1 Nbd7 {1-0 (35) Papan,C (2106)-Tejnsky,B (1848) Ostrava 2003}) 10. Bxe7 {[%emt 0:03:38]} Qxe7 {[%emt 0:00:02]} 11. Bxe4 {[%emt 0:04:20]} dxe4 {[%emt 0:00:03]} 12. Qc2 {[%emt 0:01:56]} Qb7 {[%emt 0:04:06]} 13. dxc5 {[%emt 0:04:54]} (13. Nd2 $14) 13... bxc5 {[%emt 0:00:25]} (13... Qd5 $15 14. f4 exf3 15. Nxf3 Qxc5) 14. Nd2 {[%emt 0:01:02][%cal Bb1d2,Bd2c4,Bc4e5,Be5g6][%mdl 32]} f5 {[%emt 0:01:31]} 15. Ndc4 {[%emt 0:02:23]} Nc6 {[%emt 0:03:42]} 16. Qa4 {[%emt 0:08:55]} Nxe5 {[%emt 0:04:25]} 17. Nxe5 {[%emt 0:00:04]} Qc7 {[%emt 0:00:37]} (17... Qxb2 $2 18. Ng6 Qb6 19. Nxf8 Kxf8 20. Rab1 $16) 18. Ng6 {[%emt 0:03:12]} Bd7 {[%emt 0:02:04]} 19. Qc4 {[%emt 0:02:42]} (19. Qc2 $5 {[%cal Rg6f8]} Rfd8 20. Nf4 $11) 19... Rfd8 {[%emt 0:01:33]} 20. b4 {[%emt 0:03:07]} (20. g4 $5) 20... Kf7 {[%emt 0:00:54]} 21. Nh4 {[%emt 0:01:16]} Qe5 {[%emt 0:06:06]} 22. f3 {[%emt 0:04:49] Strongly threatening fxe4.} exf3 {[%emt 0:04:22]} (22... Rab8 $17 {Threatens to win with ...Bb5.} 23. fxe4 Bb5) 23. Rxf3 $11 {[%emt 0:00:18]} g6 {[%emt 0:00:13]} (23... Ke8 $11) 24. Rg3 {[%emt 0:03:55]} (24. e4 $1 $14 {keeps the upper hand.} Kg7 25. Rg3) 24... Rg8 $2 {[%emt 0:02:44]} ({Resist} 24... g5 25. Nxf5 $1 Kg6 26. Nh4+ (26. Ne7+ Kf6 $11) 26... Kh7 27. Nf3 $16 (27. bxc5 gxh4 28. Qxh4 Rg8 $11) (27. Qd3+ Kg8 $16)) (24... cxb4 $1 $17 {keeps the pressure on.} 25. e4 Rac8 26. Qxb4 g5 27. exf5 exf5) 25. Rf1 {[%emt 0:00:13]} (25. Nf3 $16 Qc7 26. Rh3 (26. Qxc5 Qxc5 27. bxc5 Kf6 $11) (26. bxc5 Bc6 $11)) 25... Qd5 {[%emt 0:02:03]} (25... cxb4 $15 26. Qxb4 Bb5) 26. Qe2 {[%emt 0:01:15]} (26. Qxd5 $11 {keeps the balance.} exd5 27. bxc5) 26... cxb4 $17 {[%emt 0:00:32] aiming for ...Bb5.} 27. e4 {[%emt 0:00:19]} Qc5+ {[%emt 0:00:19]} 28. Qe3 {[%emt 0:00:21]} Qxe3+ {[%emt 0:00:02]} 29. Rxe3 {[%emt 0:00:00]} bxc3 {[%emt 0:00:35]} 30. exf5 {[%emt 0:00:07]} gxf5 {[%emt 0:00:09]} 31. Rxc3 {[%emt 0:00:14]} Rgc8 {[%emt 0:00:46] Inhibits Rc7.} 32. Rg3 {[%emt 0:00:20]} Rg8 {[%emt 0:00:27] Inhibits Ng6.} 33. Rc3 $1 {[%emt 0:00:09]} Rac8 {[%emt 0:00:04]} 34. Rb3 {[%emt 0:00:11]} Rc7 {[%emt 0:00:26] Against Rb7} 35. Nf3 {[%emt 0:00:05]} Kf6 {[%emt 0:00:02] Prevents Ne5.} 36. Rb2 {[%emt 0:00:09]} e5 {[%emt 0:00:27]} 37. Rd2 {[%emt 0:00:08]} Be6 {[%emt 0:00:17]} 38. Rd6 {[%emt 0:00:11]} Rd7 {[%emt 0:00:19]} (38... Rc2 $19 39. g3 Rgc8) 39. Rc6 {[%emt 0:00:16][%cal Of3e5]} e4 {[%emt 0:00:36]} 40. Nh4 {[%emt 0:00:10]} Rd5 {[%emt 0:00:30] Black is more active.} 41. a4 {[%emt 0:00:10]} ({Better is} 41. Ra6) 41... Rgd8 {[%emt 0:00:40]} 42. Rc7 $2 {[%emt 0:00:12]} (42. g3 $17 {is a better defense.}) 42... R8d7 {[%emt 0:00:31]} (42... Rd1 $142 43. Rxd1 Rxd1+ 44. Kf2 f4) 43. Rc6 $19 {[%emt 0:00:08]} e3 {[%emt 0:00:22]} ({Black should play} 43... Rd1 $19 {Hoping for ...e3.} 44. g3 h5) 44. Nf3 $2 {[%emt 0:00:12]} (44. g3 $17) 44... Rd1 {[%emt 0:00:04]} 45. Rc1 $2 {[%emt 0:00:09]} (45. g3) 45... e2 {[%emt 0:00:06][%csl Gd1][%cal Re2f1]} 46. Re1 {[%emt 0:00:02] [#]} Rxc1 $1 {[%emt 0:00:01] Weighted Error Value: White=0.60/Black=0.29 (precise)} 0-1

[Event "Israeli Team U18-ch 2022"]
[Site "Be'er Ya'akov"]
[Date "2022.08.15"]
[Round "3.11"]
[White "Dezent, Eyal"]
[Black "Borodety, Itamar"]
[Result "0-1"]
[ECO "B76"]
[WhiteElo "1869"]
[BlackElo "1939"]
[Annotator "NA RC"]
[PlyCount "148"]
[EventDate "2022.08.14"]
[EventCountry "ISR"]
[SourceTitle "playchess.com"]
[Source "ChessBase"]
[SourceQuality "1"]
[TimeControl "3000+10"]

1. e4 {[%emt 0:00:33]} c5 {[%emt 0:00:04]} 2. Nf3 {[%emt 0:00:07]} d6 {[%emt 0:00:04]} 3. d4 {[%emt 0:00:06]} cxd4 {[%emt 0:00:08]} 4. Nxd4 {[%emt 0:00:04]} Nf6 {[%emt 0:00:05]} 5. Nc3 {[%emt 0:00:04]} g6 {[%emt 0:00:17]} 6. Be3 {[%emt 0:00:14]} Bg7 {[%emt 0:00:07]} 7. f3 {[%emt 0:00:05]} O-O {[%emt 0:00:06]} 8. Qd2 {[%emt 0:00:06]} Nc6 {[%emt 0:00:04]} 9. g4 {[%emt 0:00:06]} Be6 {[%emt 0:00:03]} 10. Nxe6 {[%emt 0:00:46]} fxe6 {[%emt 0:00:07]} 11. O-O-O {[%emt 0:00:13]} Ne5 {[%emt 0:00:11]} 12. Be2 {[%emt 0:00:33]} Qa5 {[%emt 0:00:01]} 13. Kb1 {[%emt 0:03:58]} Rac8 {[%emt 0:00:56]} 14. Nb5 {[%emt 0:45:35]} Qxd2 {[%emt 0:00:29]} 15. Bxd2 {[%emt 0:00:00]} a6 {[%emt 0:05:34]} 16. Nd4 {[%emt 0:00:00]} Kf7 {[%emt 0:00:10]} 17. Bc1 {[%emt 0:00:00]} b5 {[%emt 0:12:55]} (17... Nc6 $14 {deserves consideration.}) 18. h4 {[%emt 0:00:00]} Nc4 {[%emt 0:09:25]} 19. h5 {[%emt 0:00:00]} e5 {[%emt 0:02:12]} 20. Nb3 {[%emt 0:00:00]} Rfd8 {[%emt 0:00:20]} 21. Bd3 {[%emt 0:00:00]} e6 {[%emt 0:01:00]} 22. Rh2 {[%emt 0:00:00]} d5 {[%emt 0:03:15]} 23. hxg6+ {[%emt 0:00:00]} hxg6 {[%emt 0:00:08]} 24. Nd2 {[%emt 0:00:00]} Rd7 {[%emt 0:05:36]} 25. Rdh1 {[%emt 0:00:00]} d4 {[%emt 0:02:23]} 26. Nf1 {[%emt 0:00:00]} a5 {[%emt 0:01:35]} 27. Ng3 {[%emt 0:00:00]} Rdd8 {[%emt 0:02:04]} 28. b3 {[%emt 0:00:00]} Nd6 {[%emt 0:00:09]} 29. g5 {[%emt 0:00:00]} Nd7 {[%emt 0:00:09]} 30. Rf2 {[%emt 0:00:13]} Kg8 {[%emt 0:00:26]} 31. Ne2 {[%emt 0:00:11]} Nc5 {[%emt 0:00:55]} 32. Bd2 {[%emt 0:00:59]} b4 {[%emt 0:01:01]} 33. Rhf1 $15 {[%emt 0:00:50]} (33. Nc1 $1 $11) 33... Rf8 {[%emt 0:00:08]} 34. Ng3 {[%emt 0:00:22]} Nxd3 {[%emt 0:00:45]} 35. cxd3 {[%emt 0:00:01]} Nb5 {[%emt 0:00:03]} 36. Ne2 {[%emt 0:00:12]} Nc3+ {[%emt 0:00:02]} 37. Bxc3 {[%emt 0:00:01]} dxc3 {[%emt 0:00:10]} 38. Kc2 {[%emt 0:00:01]} Ra8 {[%emt 0:00:34]} 39. f4 {[%emt 0:00:41]} a4 {[%emt 0:00:26]} 40. bxa4 {[%emt 0:00:49]} Rxa4 {[%emt 0:00:12]} 41. Nc1 {[%emt 0:00:00]} Ra3 {[%emt 0:01:50]} 42. fxe5 {[%emt 0:00:00]} Rxf2+ {[%emt 0:00:01]} 43. Rxf2 {[%emt 0:00:00]} Bxe5 {[%emt 0:00:00]} 44. Rf1 {[%emt 0:00:15]} Bd4 {[%emt 0:00:10]} 45. Rf3 {[%emt 0:00:03]} Kg7 {[%emt 0:00:25]} 46. Kb1 {[%emt 0:00:05]} Be5 {[%emt 0:00:33]} 47. Rf2 {[%emt 0:00:22]} Bg3 {[%emt 0:00:08]} 48. Rf1 {[%emt 0:00:20]} Bh4 {[%emt 0:00:10]} 49. Rg1 {[%emt 0:00:01]} Ra5 {[%emt 0:00:01]} 50. Kc2 {[%emt 0:00:08]} Bxg5 {[%emt 0:00:03]} 51. Kb3 {[%emt 0:00:13]} Be7 {[%emt 0:00:09]} 52. d4 {[%emt 0:00:10]} g5 {[%emt 0:00:05]} 53. Rg2 {[%emt 0:00:16]} Kg6 {[%emt 0:00:01]} 54. Nd3 {[%emt 0:00:04]} Ra3+ {[%emt 0:00:18]} 55. Kc4 {[%emt 0:00:33]} Kh5 {[%emt 0:00:29]} 56. Ne5 {[%emt 0:00:00]} Kh4 {[%emt 0:00:22]} 57. Rc2 {[%emt 0:00:00]} Kh3 {[%emt 0:00:09]} 58. d5 {[%emt 0:00:06]} exd5+ {[%emt 0:00:04]} 59. exd5 {[%emt 0:00:01]} g4 {[%emt 0:00:08]} 60. Nd3 {[%emt 0:00:20]} g3 {[%emt 0:00:09]} 61. Nf4+ {[%emt 0:00:01]} Kg4 {[%emt 0:00:03]} 62. Ng2 {[%emt 0:00:02]} Bd6 {[%emt 0:00:22]} 63. Kb5 {[%emt 0:00:28]} Be5 {[%emt 0:00:23]} 64. Kxb4 {[%emt 0:00:05]} Ra6 {[%emt 0:00:07]} 65. a4 {[%emt 0:00:22]} Kf3 {[%emt 0:00:01]} 66. Nh4+ {[%emt 0:00:07]} Ke3 {[%emt 0:00:06]} 67. Ng2+ {[%emt 0:00:12]} Kd3 {[%emt 0:00:04]} 68. Ne1+ {[%emt 0:00:01]} Ke4 {[%emt 0:00:05]} 69. Kb5 {[%emt 0:00:14]} Ra8 {[%emt 0:00:05]} 70. a5 {[%emt 0:00:06]} Kxd5 {[%emt 0:00:06]} 71. a6 {[%emt 0:00:10]} Bd4 {[%emt 0:00:04]} 72. Rg2 {[%emt 0:00:06]} Bf2 {[%emt 0:00:00]} 73. Nc2 {[%emt 0:00:00]} Ke4 {[%emt 0:00:12]} 74. Nb4 {[%emt 0:00:49]} Kf3 {[%emt 0:00:06]} 0-1

[Event "Israeli Team U18-ch 2022"]
[Site "Be'er Ya'akov"]
[Date "2022.08.15"]
[Round "3.12"]
[White "Bilenkiy, Maksym"]
[Black "Qasem, Huda"]
[Result "1-0"]
[ECO "B33"]
[WhiteElo "1650"]
[BlackElo "1765"]
[Annotator "NA RC"]
[PlyCount "69"]
[EventDate "2022.08.14"]
[EventCountry "ISR"]
[SourceTitle "playchess.com"]
[Source "ChessBase"]
[SourceQuality "1"]
[TimeControl "3000+10"]

1. e4 {[%emt 0:00:03]} c5 {[%emt 0:00:15]} 2. Nf3 {[%emt 0:00:06]} Nc6 {[%emt 0:00:06]} 3. d4 {[%emt 0:00:08]} cxd4 {[%emt 0:00:08]} 4. Nxd4 {[%emt 0:00:02]} e5 {[%emt 0:00:18]} 5. Nb5 {[%emt 0:00:13]} d6 {[%emt 0:00:07]} 6. N1c3 {[%emt 0:00:15]} a6 {[%emt 0:00:08]} 7. Na3 {[%emt 0:00:07]} b5 {[%emt 0:00:08]} 8. Nd5 {[%emt 0:00:10]} Nf6 {[%emt 0:00:09]} 9. Bg5 {[%emt 0:00:22]} Be7 {[%emt 0:00:13]} 10. Bxf6 {[%emt 0:00:32]} Bxf6 {[%emt 0:00:06]} 11. c4 {[%emt 0:00:47]} b4 {[%emt 0:00:06]} 12. Nc2 {[%emt 0:00:04]} Rb8 {[%emt 0:00:13]} 13. b3 {[%emt 0:00:20]} a5 {[%emt 0:00:44]} 14. Be2 {[%emt 0:00:20]} Bg5 {[%emt 0:01:09]} 15. O-O {[%emt 0:00:52]} O-O {[%emt 0:00:21]} 16. Qd3 {[%emt 0:00:14]} Ne7 {[%emt 0:05:35]} 17. Rad1 {[%emt 0:04:05]} Nxd5 {[%emt 0:02:28]} 18. Qxd5 {[%emt 0:00:06]} Bb7 {[%emt 0:02:21]} 19. Qd3 {[%emt 0:00:08]} Qf6 {[%emt 0:01:41]} 20. Bf3 {[%emt 0:00:33]} Rfd8 {[%emt 0:01:02]} 21. Ne3 {[%emt 0:00:38]} Bxe3 {[%emt 0:00:48]} 22. Qxe3 {[%emt 0:00:06]} Bc6 {[%emt 0:01:44]} 23. Rd2 {[%emt 0:00:32]} Qe7 {[%emt 0:01:52]} 24. Rfd1 {[%emt 0:00:19]} Rd7 {[%emt 0:01:32]} 25. h3 {[%emt 0:00:30]} g6 {[%emt 0:00:32]} 26. Bg4 {[%emt 0:00:40]} Rdd8 {[%emt 0:00:10]} 27. Rd3 {[%emt 0:00:57]} Qc7 {[%emt 0:04:33]} 28. Bf3 {[%emt 0:01:05]} f5 {[%emt 0:26:21]} 29. exf5 {[%emt 0:02:44]} e4 {[%emt 0:00:00]} 30. Bxe4 {[%emt 0:00:02]} Re8 {[%emt 0:00:00]} 31. Rd4 {[%emt 0:00:03]} gxf5 {[%emt 0:00:00]} 32. Qg5+ {[%emt 0:00:11]} Kh8 {[%emt 0:00:00]} 33. Qf6+ {[%emt 0:00:09]} Qg7 {[%emt 0:00:00]} 34. Qxg7+ {[%emt 0:00:05]} Kxg7 {[%emt 0:00:00]} 35. Bxc6 {[%emt 0:00:07]} 1-0

[Event "Israeli Team U18-ch 2022"]
[Site "Be'er Ya'akov"]
[Date "2022.08.15"]
[Round "3.14"]
[White "Zusman, Tal"]
[Black "Tirosh, Roy"]
[Result "1-0"]
[ECO "C54"]
[WhiteElo "1445"]
[BlackElo "1034"]
[Annotator "NA RC"]
[PlyCount "83"]
[EventDate "2022.08.14"]
[EventCountry "ISR"]
[SourceTitle "playchess.com"]
[Source "ChessBase"]
[SourceQuality "1"]
[TimeControl "3000+10"]

1. e4 {[%emt 0:46:17]} e5 {[%emt 0:46:20]} 2. Nf3 {[%emt 0:00:09]} Nc6 {[%emt 0:00:11]} 3. Bc4 {[%emt 0:00:10]} Bc5 {[%emt 0:00:11]} 4. d3 {[%emt 0:00:09]} Nf6 {[%emt 0:00:12]} 5. c3 {[%emt 0:00:10]} d6 {[%emt 0:00:13]} 6. Be3 {[%emt 0:00:18]} Bxe3 {[%emt 0:00:29]} 7. fxe3 {[%emt 0:00:10]} Qe7 {[%emt 0:00:10]} 8. O-O {[%emt 0:00:13]} Be6 {[%emt 0:00:16]} 9. Bb3 {[%emt 0:00:10]} O-O-O {[%emt 0:00:20]} 10. Nbd2 {[%emt 0:00:14]} h6 {[%emt 0:00:13]} 11. Qe2 {[%emt 0:00:20]} d5 {[%emt 0:00:25]} 12. exd5 {[%emt 0:00:17]} Bxd5 {[%emt 0:00:23]} 13. e4 {[%emt 0:00:27]} Be6 {[%emt 0:00:16]} 14. Nc4 {[%emt 0:00:15]} Nd7 {[%emt 0:00:20]} 15. Qe3 {[%emt 0:00:14]} Nc5 {[%emt 0:00:32]} 16. Rad1 {[%emt 0:00:20]} Nxb3 {[%emt 0:00:11]} 17. axb3 {[%emt 0:00:09]} Bg4 {[%emt 0:01:02]} 18. b4 {[%emt 0:00:15]} a6 {[%emt 0:00:10]} 19. h3 {[%emt 0:00:17]} Bxf3 {[%emt 0:00:24]} 20. Rxf3 {[%emt 0:00:11]} Kb8 {[%emt 0:00:15]} 21. Qf2 {[%emt 0:00:12]} Rhf8 {[%emt 0:00:14]} 22. Ne3 {[%emt 0:00:12]} f6 {[%emt 0:00:29]} 23. Nd5 {[%emt 0:00:09]} Qe6 {[%emt 0:00:10]} 24. Qg3 {[%emt 0:00:16]} g5 {[%emt 0:00:13]} 25. Qf2 {[%emt 0:00:14]} f5 {[%emt 0:00:09]} 26. Ra1 {[%emt 0:00:41]} f4 {[%emt 0:00:18]} 27. Qc5 {[%emt 0:00:29]} Qd6 {[%emt 0:00:20]} 28. Qf2 {[%emt 0:00:26]} h5 {[%emt 0:00:08]} 29. Qd2 {[%emt 0:00:29]} g4 {[%emt 0:00:11]} 30. hxg4 {[%emt 0:00:10]} hxg4 {[%emt 0:00:09]} 31. Rff1 {[%emt 0:00:12]} Rh8 {[%emt 0:00:09]} 32. Kf2 {[%emt 0:00:12]} f3 {[%emt 0:00:17]} 33. Rg1 {[%emt 0:00:35]} Rh2 {[%emt 0:00:10]} 34. Ke1 {[%emt 0:00:22]} Rf8 {[%emt 0:00:11]} 35. Kd1 {[%emt 0:00:13]} fxg2 {[%emt 0:00:11]} 36. Kc2 {[%emt 0:00:11]} g3 {[%emt 0:00:09]} 37. Kb3 {[%emt 0:00:13]} Rf2 {[%emt 0:00:09]} 38. Qe3 {[%emt 0:00:10]} Qh6 {[%emt 0:00:14]} 39. Qxg3 {[%emt 0:00:17]} Qd2 {[%emt 0:00:08]} 40. Qg8+ {[%emt 0:00:09]} Ka7 {[%emt 0:00:09]} 41. Nxc7 {[%emt 0:00:20]} Qxb2+ {[%emt 0:00:12]} 42. Kc4 {[%emt 0:00:13]} 1-0